Cogmind - Beta 16 --- EXPLORER MODE // 2025.12.22 @ 16:53:32 Player: K.K.Y. Result: Destroyed by A4-F9L(R) with Subdweller Laser Performance ------------- Evolutions (0) 0 Regions Visited (3) 600 Robots Destroyed (19) 95 Value Destroyed (354) 354 Prototype IDs (18) 360 Alien Tech Used (0) 0 Bonus (35) 35 TOTAL SCORE: 1444 Bonus ------- Follower Combat Kills 35 Cogmind --------- Core Integrity 0/250 Matter 290/300 Energy 19/100 System Corruption 2% Temperature Cool (6) Movement Treading (160) Location -10/Subcaves Parts ------- > --- POWER (1) -------- (None) > --- PROPULSION (2) --- Light Treads > --- UTILITY (3) ------ Core Shielding > --- WEAPON (2) ------- Subdweller Laser Heavy Hammer > --- INVENTORY (5) ---- Huge Storage Unit Sensor Array Hardened Light Armor Plating Hardened Light Armor Plating Mining Laser Peak State ------------ > --- POWER ------------ Ion Engine > --- PROPULSION ------- Light Treads Light Treads > --- UTILITY ---------- Large Storage Unit Core Shielding > --- WEAPON ----------- Riot Gun Beam Rifle > --- INVENTORY -------- Light Treads Improved Heat Sink High-capacity Storage Unit Huge Storage Unit Sensor Array Utility Shielding Light Armor Plating Hardened Light Armor Plating Hardened Light Armor Plating Hardened Light Armor Plating Hardened Light Armor Plating Mining Laser Multitool Heavy Hammer [Rating: 12] Favorites ----------- Power Ion Engine Engine Ion Engine Propulsion Light Treads Treads Light Treads Utility Core Shielding Device Structural Scanner Storage Large Storage Unit Protection Core Shielding Weapon Medium Laser Energy Gun Medium Laser Impact Weapon Heavy Hammer Build | -11 -10 -10 -10 ------- Run | Yrd Mat Min Sub Slots Evolved 1 | . 1 . . Power . | . . . . Propulsion . | . . . . Utility 1 | . 1 . . Weapon . | . . . . Parts Attached 18 | 7 2 4 5 Power 2 | 1 . . 1 Engine 2 | 1 . . 1 Core . | . . . . Reactor . | . . . . Propulsion 5 | 2 . 2 1 Treads 5 | 2 . 2 1 Leg . | . . . . Wheel . | . . . . Hover . | . . . . Flight . | . . . . Utility 4 | 2 2 . . Device 1 | 1 . . . Storage 2 | 1 1 . . Processor . | . . . . Hackware . | . . . . Protection 1 | . 1 . . Artifact . | . . . . Weapon 7 | 2 . 2 3 Energy Gun 6 | 2 . 1 3 Energy Cannon . | . . . . Ballistic Gun . | . . . . Ballistic Cannon . | . . . . Launcher . | . . . . Special Weapon . | . . . . Impact Weapon 1 | . . 1 . Slashing Weapon . | . . . . Piercing Weapon . | . . . . Special Melee Weapon . | . . . . Unidentified Prototypes . | . . . . Parts Lost 7 | . . 2 5 Power 2 | . . 1 1 Propulsion 2 | . . 1 1 Utility 1 | . . . 1 Weapon 2 | . . . 2 Highest Loss Streak 5 | . . 2 5 To Critical Strikes . | . . . . Average Backups 10 | 2 7 11 13 Power . | . . . . Propulsion . | . 1 1 . Utility 7 | 1 4 8 9 Weapon 1 | . 1 2 1 Tool/Special . | . . . . Unused Backups 14 | . 1 . 13 Power . | . . . . Propulsion . | . . . . Utility 11 | . . . 11 Weapon 2 | . 1 . 1 Tool/Special 1 | . . . 1 Average Slot Usage (%) 89 | . 97 88 77 Engine 8 | . 12 6 5 Treads 24 | . 25 23 23 Device 7 | . 12 7 . Storage 11 | . 12 12 11 Protection 11 | . 9 12 12 Energy Gun 23 | . 25 23 21 Impact Weapon 1 | . . . 3 Peak Build Rating 12 | 7 9 9 12 Average Rating 8 | 5 8 8 10 On Entrance 5 | . 7 9 7 Avg Prop Armor Cover (%) . | . . . . Naked Turns . | . . . . Heaviest Build 32 | 20 31 31 32 Greatest Support 40 | 40 40 40 40 Greatest Overweight (x) 8 | . . 8 1 Average Overweight (x) . | . . . . Largest Inventory Capacity 15 | 10 15 15 15 Average Capacity 13 | 8 12 15 14 Most Carried 15 | 5 12 13 15 Average Carried 10 | 2 7 11 13 Final Capacity 15 | 10 15 15 5 Final Carried 12 | 2 11 12 5 Class Distribution -------------------- 100% | Hacker-Mutant Dominant Class ---------------- Hacker-Mutant | -10/Materials Hacker-Mutant | -10/Mines Hacker-Mutant | -10/Subcaves Resources | -11 -10 -10 -10 ----------- Run | Yrd Mat Min Sub Matter Collected 569 | 270 37 222 40 Remotely . | . . . . Salvage Created 712 | 132 168 292 120 Parts 37 | 10 12 5 10 Haulers Intercepted 1 | . 1 . . Recyclers Shooed . | . . . . Parts Field Recycled . | . . . . Retrieved Matter . | . . . . Parts Self-Destructed . | . . . . Prevented . | . . . . Parts Restored . | . . . . Kills | -11 -10 -10 -10 ------- Run | Yrd Mat Min Sub Combat Hostiles Destroyed 25 | . 5 17 3 Melee 8 | . . 8 . Guns 15 | . 4 8 3 Classes Destroyed 11 | 2 3 4 2 Builder 1 | . . 1 . Tunneler 3 | 3 . . . Hauler 1 | . 1 . . Recycler 1 | 1 . . . Watcher 3 | . 3 . . Swarmer 5 | . 5 . . Grunt 1 | . . 1 . Sentry 1 | . . . 1 Demolisher 1 | . . 1 . Subdweller 2 | . . . 2 Assembled 15 | . . 15 . Best Kill Streak 10 | 4 2 10 2 Combat Bots Only 10 | . 2 10 2 Max Kills in Single Turn 2 | 2 1 1 1 Gunslinging . | . . . . Exploded . | . . . . Melee 1 | . . 1 . Uniques/NPCs Destroyed . | . . . . Combat | -11 -10 -10 -10 -------- Run | Yrd Mat Min Sub Hostile Shots Fired 94 | . 16 45 33 Missed 23 | . 7 11 5 Hits 71 | . 9 34 28 Melee 15 | . . 15 . Projectile 56 | . 9 19 28 AOE 6 | . . 2 4 Critical Strikes 1 | . . 1 . Damage Taken 1030 | . 58 524 448 Core 259 | . 19 167 73 Absorbed by Shields . | . . . . Redirected to Shielding 38 | . 1 24 13 Ignored by Resistances 584 | . 41 282 261 Core Remaining (%) 100 | 100 . . . Volleys Fired 79 | 7 20 32 20 Largest 2 | 2 2 2 2 Hottest 106 | 100 100 100 106 Shots Fired 128 | 14 40 51 23 Gun 128 | 14 40 51 23 Cannon . | . . . . Launcher . | . . . . Special . | . . . . Kinetic . | . . . . Thermal 119 | 14 40 51 14 Explosive . | . . . . Electromagnetic 9 | . . . 9 Robot Hit Streak 20 | 6 14 8 20 Robot Miss Streak 2 | 1 1 2 1 Penetration Max . | . . . . Secondary Targets . | . . . . Shots Hit Robots 111 | 10 31 53 17 Core Hits 44 | 5 10 22 7 Critical Kills 1 | . . 1 . Critical Parts Destroyed 1 | . . 1 . Critical Strikes 15 | 1 5 9 . Burn 13 | 1 5 7 . Smash 2 | . . 2 . Melee Attacks 19 | . . 15 4 Impact 19 | . . 15 4 Slashing . | . . . . Piercing . | . . . . Sneak Attacks . | . . . . Combat Hostiles . | . . . . Follow-up Attacks . | . . . . Damage Inflicted 1952 | 134 391 1130 297 Guns 1323 | 134 391 501 297 Cannons . | . . . . Explosions . | . . . . Melee 629 | . . 629 . Ramming . | . . . . Kinetic . | . . . . Thermal 1180 | 134 391 501 154 Explosive . | . . . . Electromagnetic 143 | . . . 143 Impact 629 | . . 629 . Slashing . | . . . . Piercing . | . . . . Highest Corruption 2 | . 2 2 2 Average Corruption 1 | . 1 2 2 Corruption Purged . | . . . . Corruption Blocked . | . . . . Effects 23 | . 4 12 7 Message Errors 6 | . 2 3 1 Matter Fused 5 | . 1 3 1 Heat Flow Errors 6 | . 1 3 2 Energy Discharges 3 | . . 1 2 Data Loss (minor) 2 | . . 1 1 Misfires 1 | . . 1 . Overload Shots . | . . . . Overflow Damage 148 | . . 148 . Projectiles . | . . . . Explosions . | . . . . Melee 148 | . . 148 . Knockbacks . | . . . . Impact . | . . . . Kinetic . | . . . . Secondary . | . . . . Self-Inflicted Damage . | . . . . Shots . | . . . . Rammed . | . . . . Targets Rammed . | . . . . Kicked . | . . . . Crushed . | . . . . Highest Temperature 681 | 122 226 681 235 Average Temperature 185 | 64 57 328 128 Received Heat Transfer 296 | . . 155 141 Effects 36 | . 1 35 . Shutdowns 5 | . . 5 . Energy Bleed 6 | . 1 5 . Interference 5 | . . 5 . Matter Decay 5 | . . 5 . Short Circuit 4 | . . 4 . Damage (minor) 3 | . . 3 . Damage (major) 7 | . . 7 . Damage (core) 1 | . . 1 . Siege Activations . | . . . . Martial Activations . | . . . . Shielding Activations . | . . . . Robots Disrupted . | . . . . Combat Hostiles . | . . . . Robots Corrupted 1 | . . 1 . Combat Hostiles 1 | . . 1 . Parts Fried . | . . . . Impact Corruptions 5 | . . 5 . Robots Melted 1 | . 1 . . Combat Hostiles 1 | . 1 . . Parts Melted 7 | 3 4 . . Heat Transferred 4342 | 481 1517 1998 346 Parts Sabotaged . | . . . . Parts Stolen . | . . . . Parts Stripped . | . . . . Power Chain Reactions . | . . . . Alert | -11 -10 -10 -10 ------- Run | Yrd Mat Min Sub Maximum Alert Level . | . . . . Low Security (%) 100 | 100 100 100 . Level 1 . | . . . . Level 2 . | . . . . Level 3 . | . . . . Level 4 . | . . . . Level 5 . | . . . . High Security . | . . . . Max Security . | . . . . Peak Influence 71 | 10 65 71 . Initial . | . . . . Average 5 | 2 7 4 . Influence Increases 348 | 20 212 96 20 Destroy 0b10 Robot/C 180 | . 100 60 20 Destroy 0b10 Robot/NC 45 | 20 20 5 . Destroy Leader 48 | . 38 10 . Allied During Kill 2 | . . 2 . Successful Hack 24 | . 24 . . Disable Machine 4 | . . 4 . Lose Combat Pursuer 45 | . 30 15 . Influence Decreases 348 | 20 212 96 20 Time Decay 348 | 20 212 96 20 Squads Dispatched . | . . . . Investigation . | . . . . Extermination . | . . . . Reinforcement . | . . . . Assault . | . . . . Garrison . | . . . . Intercept . | . . . . Searches Triggered . | . . . . Construction Impeded . | . . . . Haulers Reinforced . | . . . . Active Scanning Responses . | . . . . Cargo Convoy Interrupts . | . . . . Stealth | -11 -10 -10 -10 --------- Run | Yrd Mat Min Sub Distress Signals 1 | . 1 . . Communications Jammed . | . . . . Distress Signals . | . . . . Times Spotted 49 | . 11 34 4 Peak Tracking Total 12 | . 3 12 2 Tactical Retreats 8 | . 2 6 . Traps | -11 -10 -10 -10 ------- Run | Yrd Mat Min Sub Traps Triggered 6 | . 6 . . Indirectly . | . . . . Trap Hack Attempts . | . . . . Triggered . | . . . . Disarmed . | . . . . Reprogrammed . | . . . . Reused . | . . . . Traps Extracted . | . . . . Installed . | . . . . Triggered . | . . . . Machines | -11 -10 -10 -10 ---------- Run | Yrd Mat Min Sub Machines Disabled 2 | . . 1 1 Max in Single Turn 1 | . . . 1 Machines Repaired . | . . . . Machines Dismantled . | . . . . Machines Sabotaged . | . . . . Overloaded Fab Kills . | . . . . Hacking | -11 -10 -10 -10 --------- Run | Yrd Mat Min Sub Machines Accessed 10 | . 8 . 2 Terminals 8 | . 8 . . Fabricators . | . . . . Repair Stations . | . . . . Recycling Units . | . . . . Scanalyzers . | . . . . Garrison Access . | . . . . Total Hacks 43 | . 38 . 5 Successful 31 | . 26 . 5 Failed 12 | . 12 . . Catastrophic . | . . . . Database Lockouts . | . . . . Manual 38 | . 38 . . Terminals 38 | . 38 . . Fabricators . | . . . . Repair Stations . | . . . . Recycling Units . | . . . . Scanalyzers . | . . . . Garrison Access . | . . . . Terminal Hacks 23 | . 18 . 5 Record 4 | . . . 4 Prototype ID Bank 18 | . 18 . . Proto ID Catalog 1 | . . . 1 Fabricator Hacks . | . . . . Repair Station Hacks . | . . . . Recycling Unit Hacks . | . . . . Scanalyzer . | . . . . Garrison Access Hacks . | . . . . Unauthorized Hacks 8 | . 8 . . Terminals 8 | . 8 . . Botnet 8 | . 8 . . Fabricators . | . . . . Repair Stations . | . . . . Recycling Units . | . . . . Scanalyzers . | . . . . Garrison Access . | . . . . Data Cores Recovered . | . . . . Used . | . . . . Hacking Detections 8 | . 8 . . Full Trace Events . | . . . . Feedback Events . | . . . . Feedback Blocked . | . . . . Robot Schematics Acquired . | . . . . Robots Built . | . . . . Authchips . | . . . . Time . | . . . . Total Robot Build Rating . | . . . . Part Schematics Acquired . | . . . . Parts Built . | . . . . Authchips . | . . . . Time . | . . . . Total Part Build Rating . | . . . . Part Studies Acquired . | . . . . Parts Repaired . | . . . . Time . | . . . . Parts Recycled . | . . . . Recycled Matter . | . . . . Retrieved Matter . | . . . . Retrieved Components . | . . . . Parts Scanalyzed . | . . . . Part Schematics Acquired . | . . . . Parts Damaged . | . . . . Bothacking | -11 -10 -10 -10 ------------ Run | Yrd Mat Min Sub Used RIF Installer . | . . . . Robots Hacked . | . . . . Non-combat . | . . . . Combat . | . . . . Robot Hacks Applied . | . . . . Relay Couplers Released . | . . . . Fabnet Peak Effective % . | . . . . Robots Rewired . | . . . . Allies Hacked . | . . . . Hacks Repelled . | . . . . Allies | -11 -10 -10 -10 -------- Run | Yrd Mat Min Sub Total Allies 3 | . . 3 . Largest Group 3 | . . 3 . Highest-Rated Group 40 | . . 40 . Highest-Rated Ally 16 | . . 16 . Total Orders . | . . . . Ally Attacks 21 | . . 21 . Total Damage 170 | . . 170 . Kills 1 | . . 1 . Allies Corrupted . | . . . . Allies Melted . | . . . . Intel | -11 -10 -10 -10 ------- Run | Yrd Mat Min Sub Active Infowar (turns) 1480 | 77 921 482 . Structural 1480 | 77 921 482 . Robot Analysis Total . | . . . . Derelict Logs Recovered 2 | . . 2 . Drone Launches . | . . . . Drone Recoveries . | . . . . Exploration | -11 -10 -10 -10 ------------- Run | Yrd Mat Min Sub Turns Passed 2569 | 113 921 975 560 Spaces Moved 1340 | 51 519 480 290 Core 18 | 14 . 4 . Treads 1322 | 37 519 476 290 Legs . | . . . . Wheels . | . . . . Hover . | . . . . Flight . | . . . . Fastest Speed 50 | 50 160 160 160 Average Speed 159 | 129 160 162 160 Slowest Speed 450 | 160 160 450 240 Overloaded Moves . | . . . . Propulsion Burnouts . | . . . . Robots Hopped . | . . . . Potential Cave-ins . | . . . . Cave-ins Triggered . | . . . . Exploration Rate (%) 55 | 5 97 96 24 Regions Visited 3 Branch Regions 2 Pre-discovered Areas 1 | . . . 1 Known Exits Taken 3 | 1 1 1 . Unknown Exits Taken . | . . . . Scrap Searched 2 | . . 1 1 Spaces Dug . | . . . . Terrain Destroyed . | . . . . Melee . | . . . . Projectile . | . . . . AOE . | . . . . Terrain Rammed . | . . . . Walls Destroyed . | . . . . Machines Disabled . | . . . . Actions | -11 -10 -10 -10 --------- Run | Yrd Mat Min Sub Total 1605 | 82 571 600 352 Wait 112 | 12 16 61 23 Move 1337 | 50 518 479 290 Hop . | . . . . Pick Up 29 | 6 12 5 6 Fast Attach 4 | 3 . . 1 Attach 10 | 4 2 2 2 Detach 1 | . . 1 . Swap 7 | . 1 2 4 Drop 7 | . 2 3 2 Fire 79 | 7 20 32 20 Melee 19 | . . 15 4 Ram . | . . . . Kick . | . . . . Crush . | . . . . Escape Stasis . | . . . . Rewire . | . . . . Trap . | . . . . Miscellaneous . | . . . . Route ------- -11/Scrapyard -10/Materials (discovered 5 exits: *Mat x3 / *Min / *Sub) -10/Mines (discovered 3 exits: *Mat x2 / *Sub) -10/Subcaves (discovered 2 exits: *Mat / Rec) History --------- Turn | Location | Event 12 | -11/Scrapyard | Identified exit to Materials 12 | -11/Scrapyard | Discovered exit to Materials (range 15) 114 | -11/Scrapyard | Entered Materials 114 | -10/Materials | Evolved 1 slot: Utility x1 115 | -10/Materials | Met a group of wandering Federalists 304 | -10/Materials | Build established: Hacker-Mutant 360 | -10/Materials | Identified exit to Materials 360 | -10/Materials | Discovered exit to Materials (range 16) 544 | -10/Materials | Discovered exit to Materials (range 4) 565 | -10/Materials | Identified exit to Mines 565 | -10/Materials | Discovered exit to Mines (range 14) 732 | -10/Materials | Discovered exit to Materials (range 8) 814 | -10/Materials | Identified exit to Subcaves 814 | -10/Materials | Discovered exit to Subcaves (range 11) 1035 | -10/Materials | Entered Mines 1042 | -10/Mines | Assisted by bots powering up and referring to "LRC-V3" 1192 | -10/Mines | Learned 4 Materials zone layouts 1255 | -10/Mines | Discovered exit to Materials (range 8) 1340 | -10/Mines | Assembled infested the area 1345 | -10/Mines | Assisted by a Guerilla fighting off Assembled 1436 | -10/Mines | Lost 3 allies 1449 | -10/Mines | Learned Materials trap positions 1527 | -10/Mines | Core integrity fell below 50% 1613 | -10/Mines | Destroyed 10 combat bots 1658 | -10/Mines | Discovered exit to Materials (range 8) 1997 | -10/Mines | Discovered exit to Subcaves (range 5) 2010 | -10/Mines | Entered Subcaves 2120 | -10/Subcaves | Shifting Twisted Machinery released Riot Gun 2134 | -10/Subcaves | Shifting Twisted Machinery released Sub. Beam Cannon 2194 | -10/Subcaves | Identified exit to Materials 2194 | -10/Subcaves | Discovered exit to Materials (range 13) 2336 | -10/Subcaves | Visited Clippyterm 2341 | -10/Subcaves | Identified exit to Recycling 2430 | -10/Subcaves | Visited 4L-MR0's lab 2444 | -10/Subcaves | Found Gun Armor 2491 | -10/Subcaves | Learned location of Zion (-7) 2491 | -10/Subcaves | Met a Zionite searching for "candidates" 2519 | -10/Subcaves | Core integrity fell below 20% 2570 | -10/Subcaves | Destroyed by A4-F9L(R) with Subdweller Laser Last Messages --------------- dangerous down here, I feel that you could die at any moment. For your health and safety might I suggest a trip to Zion?" World map updated: -7/Zion. 02507_ A4-F9L(R) emerges from the Twisted Machinery. 02509_ TX-LH8(z) destroyed. 02510_ System corrupted: Heat flow error (+247). 02511_ Ion Engine destroyed. 02511_ WZ-UF6(z) destroyed. 02516_ BW-VIO(R): "ARGHSUB!" 02520_ Lgt. Treads destroyed. 02521_ D3-CKN(R) destroyed. 02524_ Beam Rifle destroyed. 02537_ Lrg. Storage Unit destroyed. 02541_ BW-VIO(R) destroyed. 02550_ A4-F9L(R) affixes Scrap Shield Fragment to Scrap Shield. 02555_ Riot Gun destroyed. 02562_ Acquired Sub. Laser. Map ----- +----------------------------------------------------+ | ????## # #??????????????????????????????????? | | ????# ##??????????????????????????????????? | | ????## ### ##??????????????????????????????????? | | ????# # #??????????????????????????????????? | | ????## ## ########???????????????????????????? | | ????## ## ???????????????????????????? | | ????# ### ?????>????????????????????? | | ????# ### ???????????????????????????? | | ????## #####??????????????????????????????? | | ?????## ##??????????????????????????????????? | | ?????## #???????????????????????????????????? | | ??#### ##???????????????????????????????????? | | ??# #????????????????????????????????????? | | ### #????????????????????????????????????? | | "### #????????????????????????????????????? | | ## #????????????????????????????????????? | | ## #######????????????????????????????????? | | ^# ##??# #######??????????????????????????? | | ## # #???# ## #####??????????????????????? | | #" ## ###### #??????????????????????? | | ## !!!#??????????????????????? | | # !!!#?#????????????????????? | | #"" ## ## =|!#;###??????????????????? | | ###" ## ##### # # ;## #??????????????? | | ??# # ##???### * ;;;;#??????????????? | | ??## ##?????# @%! ; ; #???????????? | | ???# ##??????## ????????? | | ???## ##????????#; R; !%= ????????? | | ????###??????" #####;; ! ;# ?????????? | | ??????????? #????#;;;;;;;#????????????? | | ???????????## # ?????# #####????????????? | | ????????????#?## ?????? #????????????????? | | ???????????????# ## ??????? #????????????????? | | ???????????????## ?# ?????? ????????????????? | | ????????????????##?# ??????? ???????????????? | | ???????????????????# ???????? ??????????????? | | ???????????????????## ?????????##?????????????? | | ?????????????????????####????????????????????????? | | ?????????????????????????????????????????????????? | | ?????????????????????????????????????????????????? | | ?????????????????????????????????????????????????? | | ?????????????????????????????????????????????????? | | ?????????????????????????????????????????????????? | | ?????????????????????????????????????????????????? | | ?????????????????????????????????????????????????? | | ?????????????????????????????????????????????????? | | ?????????????????????????????????????????????????? | | ?????????????????????????????????????????????????? | | ?????????????????????????????????????????????????? | | ?????????????????????????????????????????????????? | +----------------------------------------------------+ Best States ------------- Heat Dissipation 25 Energy Generation 10 Energy Capacity 250 Matter Stores 300 Matter Capacity 300 Sight Range 16 Terrain Scan Density 10 Resistance: KI 35 Resistance: TH 35 Resistance: EX 35 Resistance: EM 35 Resistance: I 35 Resistance: S 35 Resistance: P 35 Core Shielding 20 Evasion (%) 50 Recoil Reduction 2 Offensive Hacking 20 Item Schematics ----------------- None Robot Schematics ------------------ None Fabricated ------------ Nothing Repaired ---------- Nothing Studied --------- None Alien Tech Used ----------------- None Achievements -------------- None Challenges ------------ None Game ------ Seed GravityShiftSuite Manual? 0 Play Time 00:12:27 Cumulative 220.9 hours Start 2025.12.22 @ 16:40:46 End 2025.12.22 @ 16:53:32 Sessions 1 Manual Loads 0 Difficulty Explorer Special Mode None Game No. 336 Rogue 0 Adventurer 0 Explorer 336 Win Type - Total 0 Types 0/0/0/0/0/0/0/0/0/0 Lore% 71 Gallery% 68 Achievement% 53 Wizard Run 0 Options --------- Layout 1 ASCII 0 Keyboard 0 Movement Mouse Keybinds 0 Fullscreen 1 Font 24/Smallcaps Map View 50x35 Zoom Use 0% Tactical HUD 1 Map Filters NONE Filters NONE Steam 1 RUN: 93d5c171-0ceb-4e3d-b31e-fe9d77d28d5c